Workbook

Sheet 설문 안내

Sheet 우주전문가 인력 pool
A1: 전문가 정보 | J1: 1순위 전문분야 | P1: 2순위 전문분야 | V1: 3순위 전문분야
A2: 기관명 | B2: 부서명(부/팀) | C2: 직급/직책 | D2: 성명 | E2: 연락처(휴대폰) | F2: 이메일 주소 | G2: 학위 전공분야 | H2: 우주분야 총 경력기간(학위+경력) | I2: 우주분야 여부 | J2: 전문분야 | K2: 전문가명 | L2: (필요시) 세부전문가명 | M2: 해당분야 경력기간(년수) | N2: 근무지 (다수작성가능) | O2: 비고 | P2: 전문분야 | Q2: 전문가명 | R2: (필요시) 세부전문가명 | S2: 해당분야 경력기간(년수) | T2: 근무지 (다수작성가능) | U2: 비고 | V2: 전문분야 | W2: 전문가명 | X2: (필요시) 세부전문가명 | Y2: 해당분야 경력기간(년수) | Z2: 근무지 (다수작성가능) | AA2: 비고
A3: 국방기술품질원 | B3: 첨단미래기술센터/우주위성팀 | C3: 선임연구원 | D3: 이해연 | E3: 010-5555-5555 | F3: 000@dtaq.re.kr | G3: 00공학 | H3: 0 년 | I3: X

Sheet 우주 전문분야 및 전문가명
A1: 코드 | D1: 전문 분야 | F1: 전문가명 | H1: 세부 전문가명 | I1: 내용
A2: 분야 | B2: 전문가명 | C2: 세부전문가명 | E2: =IF(F2="","",MAX(E$1:E1)+1) ->  | G2: =IF(H2="","",MAX(G$1:G1)+1) -> 
A3: 1 | D3: 우주 법, 정책, 전략, 기획 분야 | E3: =IF(F3="","",MAX(E$1:E2)+1) ->  | G3: =IF(H3="","",MAX(G$1:G2)+1) -> 
B4: 1.01 | E4: =IF(F4="","",MAX(E$1:E3)+1) -> 1 | F4: 우주법 전문가 | G4: =IF(H4="","",MAX(G$1:G3)+1) ->  | I4: 국제 및 국내 우주법 제정과 법률적 검토
B5: 1.02 | E5: =IF(F5="","",MAX(E$1:E4)+1) -> 2 | F5: 우주 규제 전문가 | G5: =IF(H5="","",MAX(G$1:G4)+1) -> 
C6: 1.02.01 | E6: =IF(F6="","",MAX(E$1:E5)+1) ->  | G6: =IF(H6="","",MAX(G$1:G5)+1) -> 1 | H6: 우주 (세부내용) 규제 전문가 | I6: 우주활동에 대한 관련 00 규제의 설계 및 관리, 우주 프로젝트 수행간 국제 및 국내 우주법과 관련 규정을 준수하도록 관리. 우주 영역인식 데이터 공유 및 규제 체계 설계
C7: 1.02.02 | E7: =IF(F7="","",MAX(E$1:E6)+1) ->  | G7: =IF(H7="","",MAX(G$1:G6)+1) -> 2 | H7: 우주 기술보호(수출통제) 전문가 | I7: 우주기술보호(수출통제) 정책의 수립 및 구현 등
B8: 1.03 | E8: =IF(F8="","",MAX(E$1:E7)+1) -> 3 | F8: 우주 표준 전문가 | G8: =IF(H8="","",MAX(G$1:G7)+1) ->  | I8: 우주활동에 대한 표준 및 인증체계 설계 및 관리, 분야별 표준 및 요구사항 테일러링 지원 등
B9: 1.04 | E9: =IF(F9="","",MAX(E$1:E8)+1) -> 4 | F9: 우주 국제협력 전문가 | G9: =IF(H9="","",MAX(G$1:G8)+1) ->  | I9: 국가 간 우주협력 및 외교 활동을 담당
B10: 1.05 | E10: =IF(F10="","",MAX(E$1:E9)+1) -> 5 | F10: 우주 정책 전문가(국방 및 국가우주) | G10: =IF(H10="","",MAX(G$1:G9)+1) ->  | I10: 군사 및 국방목적의 우주활용 정책 및 전략 수립, 국가 우주산업 활성화 및 경제적 성장 전략 설계
B11: 1.07 | E11: =IF(F11="","",MAX(E$1:E10)+1) -> 6 | F11: 우주 기술기획 전문가 | G11: =IF(H11="","",MAX(G$1:G10)+1) ->  | I11: 우주기술 발전을 위한 장기적인 기술 개발 전략 수립
B12: 1.08 | E12: =IF(F12="","",MAX(E$1:E11)+1) -> 7 | F12: 우주 사업기획 전문가(프로그램 기획) | G12: =IF(H12="","",MAX(G$1:G11)+1) ->  | I12: 국가적(민수/국방) 또는 민간 우주사업 기획과 재원 확보(예산 등) 계획 수립
B13: 1.09 | E13: =IF(F13="","",MAX(E$1:E12)+1) -> 8 | F13: 지속가능 우주활동 전문가(우주 파편완화 정책 전문가) | G13: =IF(H13="","",MAX(G$1:G12)+1) ->  | I13: 우주 쓰레기 문제와 지속 가능한 우주환경 관리 정책 및 전략 수립
B14: 1.10. | E14: =IF(F14="","",MAX(E$1:E13)+1) -> 9 | F14: 우주 보안 전문가 | G14: =IF(H14="","",MAX(G$1:G13)+1) ->  | I14: 위성의 보호와 우주 자산의 보안 전략 수립
B15: 1.11 | E15: =IF(F15="","",MAX(E$1:E14)+1) -> 10 | F15: 우주정책 데이터 분석가 | G15: =IF(H15="","",MAX(G$1:G14)+1) ->  | I15: 우주개발 관련 데이터를 분석하여 정책 수립 지원
B16: 1.12 | E16: =IF(F16="","",MAX(E$1:E15)+1) -> 11 | F16: 우주경제 분석가 | G16: =IF(H16="","",MAX(G$1:G15)+1) ->  | I16: 우주산업 시장 데이터 분석 및 예측
B17: 1.13 | E17: =IF(F17="","",MAX(E$1:E16)+1) -> 12 | F17: 우주 교육기획 및 인력양성/관리 전문가 | G17: =IF(H17="","",MAX(G$1:G16)+1) ->  | I17: 우주산업의 분야별 전문 인력을 양성하기 위해 교육체계를 구축하고 전문인력을 양성 및 관리
B18: 1.14 | E18: =IF(F18="","",MAX(E$1:E17)+1) -> 13 | F18: 우주 스타트업 지원 전문가(컨설팅 전문가) | G18: =IF(H18="","",MAX(G$1:G17)+1) ->  | I18: 신규 우주분야 진입을 원하는 기업을 지원하고 전략 제공
A19: =A3+1 -> 2 | D19: 우주시스템 프로젝트 관리 분야 | E19: =IF(F19="","",MAX(E$1:E18)+1) ->  | G19: =IF(H19="","",MAX(G$1:G18)+1) -> 
B20: 2.01 | E20: =IF(F20="","",MAX(E$1:E19)+1) -> 14 | F20: 우주 프로젝트 기획 전문가 | G20: =IF(H20="","",MAX(G$1:G19)+1) ->  | I20: 특정 프로젝트의 목표 설정, 일정 계획, 자원 배분 등 초기 단계 기획
B21: 2.02 | E21: =IF(F21="","",MAX(E$1:E20)+1) -> 15 | F21: 우주 프로젝트 관리 전문가 | G21: =IF(H21="","",MAX(G$1:G20)+1) ->  | I21: 특정 프로젝트 내 여러 업무를 통합적으로 관리하며 전략적 목표와의 연계성을 확보, 프로젝트 이해 관계자 간의 의사소통 및 협력 촉진과 관리
B22: 2.03 | E22: =IF(F22="","",MAX(E$1:E21)+1) -> 16 | F22: 우주 형상 관리 전문가 | G22: =IF(H22="","",MAX(G$1:G21)+1) ->  | I22: 우주 프로젝트에서 생성된 형상 정보를 확인, 관리, 감독
B23: 2.04 | E23: =IF(F23="","",MAX(E$1:E22)+1) -> 17 | F23: 우주 정보/문서체계 관리 전문가 | G23: =IF(H23="","",MAX(G$1:G22)+1) ->  | I23: 우주 프로젝트에서 생성된 문서(품질보증 관련 기록, 시험보고서, 검증 문서 등)/정보/데이터의 작성 편의성 연구 및 관리, 규정 준수를 증명하기 위한 문서화 관리, 정보체계 활용 및 발전 방안을 제안
B24: 2.05 | E24: =IF(F24="","",MAX(E$1:E23)+1) -> 18 | F24: 우주 비용분석 및 관리 전문가 | G24: =IF(H24="","",MAX(G$1:G23)+1) ->  | I24: 프로젝트의 예산 책정, 자금 조달 및 지출을 관리하며, 인적 자원과 물적 자원을 효과적으로 분배하고 운영
B25: 2.06 | E25: =IF(F25="","",MAX(E$1:E24)+1) -> 19 | F25: 우주 위험분석 및 관리 전문가 | G25: =IF(H25="","",MAX(G$1:G24)+1) ->  | I25: 프로젝트의 기술적, 경제적, 환경적 위험 요소를 분석 및 평가하고, 식별된 위험을 최소화하기 위한 전략과 방안을 설계
B26: 2.07 | E26: =IF(F26="","",MAX(E$1:E25)+1) -> 20 | F26: 우주 계약관리 전문가 | G26: =IF(H26="","",MAX(G$1:G25)+1) ->  | I26: 우주 프로젝트 관련 계약 체결 및 협상, 계약 이행 과정 관리
B27: 2.08 | E27: =IF(F27="","",MAX(E$1:E26)+1) -> 21 | F27: 우주 프로젝트 성과분석 전문가 | G27: =IF(H27="","",MAX(G$1:G26)+1) ->  | I27: 우주 프로젝트의 성공 여부를 정량적으로 평가하고 목표 달성도를 분석
A28: =A3+2 -> 3 | D28: 우주시스템 제품보증 분야 | E28: =IF(F28="","",MAX(E$1:E27)+1) ->  | G28: =IF(H28="","",MAX(G$1:G27)+1) -> 
E29: =IF(F29="","",MAX(E$1:E28)+1) -> 22 | F29: 품질관리시스템(QMS) 전문가 | G29: =IF(H29="","",MAX(G$1:G28)+1) ->  | I29: 국제품질표준(ISO 9001, AS9100 등)에 기반한 품질관리체계 설계 및 운영
E30: =IF(F30="","",MAX(E$1:E29)+1) -> 23 | F30: 우주 품질관리 전문가(품질관리 기관) | G30: =IF(H30="","",MAX(G$1:G29)+1) ->  | I30: 국제 및 국내 품질 표준(요구사항 등)에 부합하는 품질관리 체계를 구축하고 운영(우주 제품보증 표준의 준수 여부를 확인 및 관리)
E31: =IF(F31="","",MAX(E$1:E30)+1) -> 24 | F31: 우주 품질보증 전문가(업체) | G31: =IF(H31="","",MAX(G$1:G30)+1) ->  | I31: 우주시스템과 기술의 성능, 신뢰성, 안전성을 보장하기 위해 검증 업무 수행
E32: =IF(F32="","",MAX(E$1:E31)+1) -> 25 | F32: 우주급/우주용 전자부품 품질 전문가 | G32: =IF(H32="","",MAX(G$1:G31)+1) ->  | I32: 위성 및 로켓(발사체) 등 우주 시스템에 사용되는 전자제품의 품질을 분석(결함분석, 대안제시 포함), 평가, 검사, 심사, 검증
E33: =IF(F33="","",MAX(E$1:E32)+1) ->  | G33: =IF(H33="","",MAX(G$1:G32)+1) -> 3 | H33: PCB
E34: =IF(F34="","",MAX(E$1:E33)+1) ->  | G34: =IF(H34="","",MAX(G$1:G33)+1) -> 4 | H34: ASIC, FPGA, IP 코어
E35: =IF(F35="","",MAX(E$1:E34)+1) ->  | G35: =IF(H35="","",MAX(G$1:G34)+1) -> 5 | H35: 하이브리드 및 모듈
E36: =IF(F36="","",MAX(E$1:E35)+1) ->  | G36: =IF(H36="","",MAX(G$1:G35)+1) -> 6 | H36: 모놀리식 마이크로파 집적회로(MMIC)
E37: =IF(F37="","",MAX(E$1:E36)+1) ->  | G37: =IF(H37="","",MAX(G$1:G36)+1) -> 7 | H37: 캐패시터
E38: =IF(F38="","",MAX(E$1:E37)+1) ->  | G38: =IF(H38="","",MAX(G$1:G37)+1) -> 8 | H38: 인덕터(RF 및 전력 코일)
E39: =IF(F39="","",MAX(E$1:E38)+1) ->  | G39: =IF(H39="","",MAX(G$1:G38)+1) -> 9 | H39: 커넥터
E40: =IF(F40="","",MAX(E$1:E39)+1) ->  | G40: =IF(H40="","",MAX(G$1:G39)+1) -> 10 | H40: 전선 & 케이블(RF, LF)
E41: =IF(F41="","",MAX(E$1:E40)+1) ->  | G41: =IF(H41="","",MAX(G$1:G40)+1) -> 11 | H41: 감쇠기(Attenuator) 및 부하
E42: =IF(F42="","",MAX(E$1:E41)+1) ->  | G42: =IF(H42="","",MAX(G$1:G41)+1) -> 12 | H42: 히터
E43: =IF(F43="","",MAX(E$1:E42)+1) ->  | G43: =IF(H43="","",MAX(G$1:G42)+1) -> 13 | H43: 전력분배기
E44: =IF(F44="","",MAX(E$1:E43)+1) ->  | G44: =IF(H44="","",MAX(G$1:G43)+1) -> 14 | H44: 페라이트 마이크로파 부품
E45: =IF(F45="","",MAX(E$1:E44)+1) ->  | G45: =IF(H45="","",MAX(G$1:G44)+1) -> 15 | H45: 크리스탈 및 표면 탄성파(SAW, Surface Acoustic Wave) 필터
E46: =IF(F46="","",MAX(E$1:E45)+1) ->  | G46: =IF(H46="","",MAX(G$1:G45)+1) -> 16 | H46: 이산 반도체(다이오드, 트랜지스터 등)
E47: =IF(F47="","",MAX(E$1:E46)+1) ->  | G47: =IF(H47="","",MAX(G$1:G46)+1) -> 17 | H47: 발진기(OSCILLATOR)
E48: =IF(F48="","",MAX(E$1:E47)+1) ->  | G48: =IF(H48="","",MAX(G$1:G47)+1) -> 18 | H48: 릴레이 및 스위치
E49: =IF(F49="","",MAX(E$1:E48)+1) ->  | G49: =IF(H49="","",MAX(G$1:G48)+1) -> 19 | H49: 저항기 및 서미스터
E50: =IF(F50="","",MAX(E$1:E49)+1) ->  | G50: =IF(H50="","",MAX(G$1:G49)+1) -> 20 | H50: 퓨즈
E51: =IF(F51="","",MAX(E$1:E50)+1) ->  | G51: =IF(H51="","",MAX(G$1:G50)+1) -> 21 | H51: 광전자 부품 및 모듈
E52: =IF(F52="","",MAX(E$1:E51)+1) ->  | G52: =IF(H52="","",MAX(G$1:G51)+1) -> 22 | H52: 기타 EEE 부품
E53: =IF(F53="","",MAX(E$1:E52)+1) -> 26 | F53: 우주 기계부품 품질 전문가 | G53: =IF(H53="","",MAX(G$1:G52)+1) ->  | I53: 위성 및 로켓(발사체) 등 우주 시스템에 사용되는 기계부품의 품질을 분석(결함분석, 대안제시 포함), 시험평가, 검사, 검증, 인증
H54: 스페이서 부품류(와셔, 스페이서 등)
H55: 연결 부품류(볼트, 너트, 리벳, 인서트, 클립 등)
H56: 베어링류(볼베어링, 니들 베어링 등)
H57: 분리 부품류(파이로, 스프링, 커터 등)
H58: 제어 부품류(기어 등)
H59: 디퓨저 등 Fluid handling parts
H60: Heating parts
H61: 측정 장치(게이지 등)
H62: Optical passive equipment
H63: 자석 부품류
H64: 기타 기계 부품
E65: =IF(F65="","",MAX(E$1:E53)+1) -> 27 | F65: 우주 소재(재료) 품질 전문가 | G65: =IF(H65="","",MAX(G$1:G53)+1) ->  | I65: 위성 및 로켓(발사체) 등 우주 시스템에 사용되는 소재(금속, 비금속, 복합재 등)의 품질을 분석(결함분석, 대안제시 포함), 시험평가, 검사, 검증, 인증
H66: 알루미늄 및 알루미늄 합금 분야
H67: 구리 및 구리 합금 분야
H68: 니켈 및 니켈 합금 분야
H69: 티타늄 및 티타늄 합금 분야
H70: 스틸 및 스테인리스 스틸 분야
H71: (필러 금속) 용접, 브레이징, 납땜
H72: 기타 금속 재료
H73: 광학 재료
H74: 접착제, 코팅제, 니스
H75: 접착 테이프
H76: 페인트 및 잉크
H77: 윤활유
H78: 포팅 컴파운드, 실란트, 폼(Foam)
H79: 강화 플라스틱(PCB 포함)
H80: 열가소성 플라스틱
H81: 열경화성 플라스틱(PCB 포함)
H82: 고무 및 엘라스토머
H83: 전선 및 케이블용 소재
H84: 세라믹 및 기타 비금속 재료
E85: =IF(F85="","",MAX(E$1:E84)+1) -> 28 | F85: 우주 공정 품질 전문가 | G85: =IF(H85="","",MAX(G$1:G84)+1) ->  | I85: 위성 및 로켓(발사체) 등 우주 시스템의 제조 공정에서 발생하는 품질문제 식별 및 개선
H86: 접착 본딩(Adhesive bonding) 분야
H87: 복합재 제조(Composite manufacture) 분야
H88: 캡슐화 및 몰딩 및 니스 처리(Encapsulation and moulding and varnishing) 분야
H89: 도장 및 코팅(Painting and coating)
H90: 클리닝(Cleaning) 분야
H91: 용접 및 브레이징(Welding and brazing)
H92: 압착 및 스트리핑, 전선 랩핑(Crimping and stripping and wire wrapping)
H93: 솔더링(Soldering)
H94: 표면 처리(Surface treatments)
H95: 도금(Plating)
H96: 가공(Machining)
H97: 성형(Forming)
H98: 열처리(Heat treatment)
H99: 마킹(Marking)
H100: 기타 공정
E101: =IF(F101="","",MAX(E$1:E85)+1) ->  | G101: =IF(H101="","",MAX(G$1:G85)+1) -> 23 | H101: 생산 공정 및 자동화 전문가 | I101: 위성 제작의 생산 효율성 및 자동화 기술 적용. 3D 프린팅, 로봇 조립 등 첨단 제조 기술 활용.
E102: =IF(F102="","",MAX(E$1:E101)+1) -> 29 | F102: 제조, 통합 및 조립 품질 전문가 | G102: =IF(H102="","",MAX(G$1:G101)+1) ->  | I102: 위성 및 로켓(발사체) 등 시스템 조립 단계에서의 품질관리 및 검증, 조립 과정 중 오류 방지 및 재작업 최소화 관리, 완성된 위성체의 최종 통합 테스트 수행.
E103: =IF(F103="","",MAX(E$1:E102)+1) -> 30 | F103: 우주 신뢰성 전문가 | G103: =IF(H103="","",MAX(G$1:G102)+1) -> 
E104: =IF(F104="","",MAX(E$1:E103)+1) ->  | G104: =IF(H104="","",MAX(G$1:G103)+1) -> 24 | H104: 우주분야 신뢰성 분석 전문가 | I104: 고장모드 및 영향(FMEA/FMECA) 분석 수행, 시스템의 신뢰성 분석을 통해 고장 확률 예측
E105: =IF(F105="","",MAX(E$1:E104)+1) -> 31 | F105: 우주 안전성 전문가 | G105: =IF(H105="","",MAX(G$1:G104)+1) -> 25 | H105: 우주시스템 안전성 전문가 | I105: 위성 및 로켓(발사체) 등의 안전성 평가 및 검증,
E106: =IF(F106="","",MAX(E$1:E105)+1) -> 32 | F106: 우주 소프트웨어 품질 전문가 | G106: =IF(H106="","",MAX(G$1:G105)+1) -> 
E107: =IF(F107="","",MAX(E$1:E106)+1) ->  | G107: =IF(H107="","",MAX(G$1:G106)+1) -> 26 | H107: 임베디드 소프트웨어 품질 전문가 | I107: 위성과 로켓에 사용되는 임베디드 시스템 소프트웨어의 신뢰성 검증
E108: =IF(F108="","",MAX(E$1:E107)+1) ->  | G108: =IF(H108="","",MAX(G$1:G107)+1) -> 27 | H108: 우주 비행 소프트웨어 시험 전문가 | I108: 소프트웨어의 정확성과 성능을 검증하기 위한 시뮬레이션 및 테스트 수행
E109: =IF(F109="","",MAX(E$1:E108)+1) -> 33 | F109: 우주 파편완화(쓰레기) 관련 품질 전문가 | G109: =IF(H109="","",MAX(G$1:G108)+1) ->  | I109: 우주 잔해 발생을 최소화하기 위한 설계 및 운용 품질 검증.
F110: 부품 단종/공급망 관리 전문가
A111: =A3+3 -> 4 | D111: 우주 시험∙평가, 데이터 분석 분야 | E111: =IF(F111="","",MAX(E$1:E109)+1) ->  | G111: =IF(H111="","",MAX(G$1:G109)+1) ->  | I111: 각 분야별 시험의 실시, 시험 결과 테이터를 분석하여 설계 기준과의 일치 여부 평가. 데이터 기반으로 문제를 진단하고 수정 방향 제안
E112: =IF(F112="","",MAX(E$1:E111)+1) -> 34 | F112: 우주 환경 시험 전문가 | G112: =IF(H112="","",MAX(G$1:G111)+1) -> 
E113: =IF(F113="","",MAX(E$1:E112)+1) ->  | G113: =IF(H113="","",MAX(G$1:G112)+1) -> 28 | H113: 열 진공 시험
E114: =IF(F114="","",MAX(E$1:E113)+1) ->  | G114: =IF(H114="","",MAX(G$1:G113)+1) -> 29 | H114: 진동 시험
E115: =IF(F115="","",MAX(E$1:E114)+1) ->  | G115: =IF(H115="","",MAX(G$1:G114)+1) -> 30 | H115: 음향 시험
E116: =IF(F116="","",MAX(E$1:E115)+1) ->  | G116: =IF(H116="","",MAX(G$1:G115)+1) -> 31 | H116: 충격 시험
E117: =IF(F117="","",MAX(E$1:E116)+1) ->  | G117: =IF(H117="","",MAX(G$1:G116)+1) -> 32 | H117: 우주환경 시뮬레이션 해석을 통해 시스템 및 재료 등을 분석∙검증
E118: =IF(F118="","",MAX(E$1:E117)+1) -> 35 | F118: 구조 및 역학 시험 전문가 | G118: =IF(H118="","",MAX(G$1:G117)+1) -> 
E119: =IF(F119="","",MAX(E$1:E118)+1) ->  | G119: =IF(H119="","",MAX(G$1:G118)+1) -> 33 | H119: 정적하중 시험
E120: =IF(F120="","",MAX(E$1:E119)+1) ->  | G120: =IF(H120="","",MAX(G$1:G119)+1) -> 34 | H120: 압력 시험
E121: =IF(F121="","",MAX(E$1:E120)+1) ->  | G121: =IF(H121="","",MAX(G$1:G120)+1) -> 35 | H121: 파괴 하중 시험
E122: =IF(F122="","",MAX(E$1:E121)+1) -> 36 | F122: (발사체) 비행하중 및 동역학 시험 전문가 | G122: =IF(H122="","",MAX(G$1:G121)+1) -> 
E123: =IF(F123="","",MAX(E$1:E122)+1) -> 37 | F123: (발사체) 열구조 시험 | G123: =IF(H123="","",MAX(G$1:G122)+1) -> 
E124: =IF(F124="","",MAX(E$1:E123)+1) -> 38 | F124: (발사체) 비행 시험 전문가 | G124: =IF(H124="","",MAX(G$1:G123)+1) ->  | I124: 실제 비행 테스트를 통해 시스템 성능 평가.
E125: =IF(F125="","",MAX(E$1:E124)+1) -> 39 | F125: (발사체) 로켓엔진 시험 전문가 | G125: =IF(H125="","",MAX(G$1:G124)+1) -> 
E126: =IF(F126="","",MAX(E$1:E125)+1) -> 40 | F126: (위성체) 시스템 및 서브시스템 기능시험 전문가 | G126: =IF(H126="","",MAX(G$1:G155)+1) ->  | I126: 각 시스템의 개별 및 통합 기능을 시험하여 성능 검증.
E127: =IF(F127="","",MAX(E$1:E126)+1) -> 41 | F127: 전자파 시험 전문가 | G127: =IF(H127="","",MAX(G$1:G125)+1) -> 
E128: =IF(F128="","",MAX(E$1:E127)+1) ->  | G128: =IF(H128="","",MAX(G$1:G127)+1) -> 36 | H128: EMI
E129: =IF(F129="","",MAX(E$1:E128)+1) ->  | G129: =IF(H129="","",MAX(G$1:G128)+1) -> 37 | H129: EMC
E130: =IF(F130="","",MAX(E$1:E129)+1) -> 42 | F130: 방사선 시험 전문가 | G130: =IF(H130="","",MAX(G$1:G129)+1) -> 
E131: =IF(F131="","",MAX(E$1:E130)+1) ->  | G131: =IF(H131="","",MAX(G$1:G130)+1) -> 38 | H131: 고에너지 입자 시험
E132: =IF(F132="","",MAX(E$1:E131)+1) ->  | G132: =IF(H132="","",MAX(G$1:G131)+1) -> 39 | H132: 총이온화 선량 시험
E133: =IF(F133="","",MAX(E$1:E132)+1) ->  | G133: =IF(H133="","",MAX(G$1:G132)+1) -> 40 | H133: 전자기 방사선 시험
E134: =IF(F134="","",MAX(E$1:E133)+1) -> 43 | F134: 소재 시험 전문가 | G134: =IF(H134="","",MAX(G$1:G133)+1) -> 41 | H134: (세부 분야 작성)
H135: 열 환경 평가(상전이, 금속의 연성-취성 전이 온도, 유리전이, 수분 등의 영향)
H136: 열 주기 및 열 광학적 특성 평가
H137: 진공에 대한 평가
H138: Offgassing 및 독성 평가
H139: 인화성 평가
H140: 방사선 평가
H141: 충방전 평가
H142: 부식 평가
H143: 응력 부식 평가
H144: 유체 호환성 평가
H145: 갈바닉 호환성 평가
H146: 원자 산소 평가
H147: 마이크로메테오이드 및 파편 평가
H148: 흡습 및 탈착 평가
H149: 기계적 접촉면 평가(냉간 용접, 프레팅, 마모 등)
H150: 수명 평가
H151: 박테리아 및 곰팡이 번식(유인 및 유체시스템)
H152: 수소 취성 평가
H153: 기타 시험 평가
F154: 전자부품 시험 전문가 | H154: (세부 분야 작성)
E155: =IF(F155="","",MAX(E$1:E134)+1) -> 44 | F155: 우주 신뢰성 및 수명평가 전문가 | G155: =IF(H155="","",MAX(G$1:G134)+1) -> 
E156: =IF(F156="","",MAX(E$1:E155)+1) ->  | G156: =IF(H156="","",MAX(G$1:G155)+1) -> 42 | H156: (세부 분야 작성)
E157: =IF(F157="","",MAX(E$1:E156)+1) -> 45 | F157: 우주 시험데이터 분석 전문가 | G157: =IF(H157="","",MAX(G$1:G156)+1) -> 43 | H157: 데이터 검증 전문가
A158: =A3+4 -> 5 | D158: 위성체계 공학 분야 | E158: =IF(F158="","",MAX(E$1:E157)+1) -> 46 | F158: 위성 임무 설계 전문가 | G158: =IF(H158="","",MAX(G$1:G157)+1) ->  | I158: 위성의 임무 기획 및 정의(목표 정의, 고객 요구사항 분석을 통한 기술적, 운영적 요구사항으로 변환, 임무 제약조건 관리(예산, 일정, 기술적 한계 등))
E159: =IF(F159="","",MAX(E$1:E158)+1) -> 47 | F159: 위성 설계 및 시스템 통합 전문가 | G159: =IF(H159="","",MAX(G$1:G158)+1) ->  | I159: 위성 설계, 개발, 시험, 운영의 전 과정에서 주요 시스템을 통합적으로 관리하고 최적화
E160: =IF(F160="","",MAX(E$1:E159)+1) ->  | G160: =IF(H160="","",MAX(G$1:G159)+1) -> 44 | H160: 위성 시스템 설계 전문가 | I160: 통신, 관측, 항법 등 특정 목적에 맞는 위성의 전반적인 설계를 총괄하며, 하위 시스템간의 조화를 유지. 임무 요구사항에 맞춘 위성 구조 및 아키텍처 설계.
E161: =IF(F161="","",MAX(E$1:E160)+1) ->  | G161: =IF(H161="","",MAX(G$1:G160)+1) -> 45 | H161: 위성 시스템 통합 전문가 | I161: 위성의 각 구성요소를 통합하고 시스템 간 인터페이스를 최적화. 하드웨어 및 소프트웨어 통합 테스트 주관, 체계 수명관리(임무종료 및 폐기, 수명연장 등)
E162: =IF(F162="","",MAX(E$1:E161)+1) -> 48 | F162: 위성 및 하위시스템 제조 및 조립 전문가 | G162: =IF(H162="","",MAX(G$1:G161)+1) -> 46 | H162: 위성 시스템 및 하위시스템의 제조 및 조립 전문가 | I162: 구조 설계와 조립 최적화, 하위체계 통합 등.
E163: =IF(F163="","",MAX(E$1:E162)+1) -> 49 | F163: 위성 구조 설계 전문가 | G163: =IF(H163="","",MAX(G$1:G162)+1) ->  | I163: 위성 본체의 구조설계를 담당하며, 무게와 강도 최적화. 발사와 궤도 환경에서의 구조적 안정성 확보
E164: =IF(F164="","",MAX(E$1:E163)+1) -> 50 | F164: 위성 전력시스템 전문가 | G164: =IF(H164="","",MAX(G$1:G163)+1) ->  | I164: 태양광 패널, 배터리, 전력분배 시스템 등의 설계 및 관리. 궤도조건에 따라 안정적인 전력 공급 보장
E165: =IF(F165="","",MAX(E$1:E164)+1) -> 51 | F165: 위성 궤도 및 자세 제어 전문가 | G165: =IF(H165="","",MAX(G$1:G164)+1) -> 47 | H165: 위성 궤도 설계 전문가 | I165: 위성의 궤도(LEO, MEO, GEO 등) 선택 및 설계, 최적화, 궤도 변경 및 유지 전략, 충돌 회피 등 설계
E166: =IF(F166="","",MAX(E$1:E165)+1) ->  | G166: =IF(H166="","",MAX(G$1:G165)+1) -> 48 | H166: 자세 제어 시스템 전문가 | I166: 위성의 방향(자세) 제어를 위한 자이로스코프, 휠, 추력기 설계 및 제어. 자세 제어 알고리즘 설계 및 성능 평가
E167: =IF(F167="","",MAX(E$1:E166)+1) -> 52 | F167: 위성 열 제어 시스템 전문가 | G167: =IF(H167="","",MAX(G$1:G166)+1) ->  | I167: 위성의 열 환경을 관리하기 위해 방열판, 단열재, 히터 시스템 설계. 태양, 지구 복사열 등 외부 열 영향에 대한 설계 최적화. 시뮬레이션과 테스트를 통해 위성의 열 안정성 검증.
E168: =IF(F168="","",MAX(E$1:E167)+1) ->  | G168: =IF(H168="","",MAX(G$1:G167)+1) -> 49 | H168: 열 보호 시스템 전문가 | I168: 우주선, 위성의 고온 및 극저온 환경을 견디기 위한 열 차폐 설계.
E169: =IF(F169="","",MAX(E$1:E168)+1) ->  | G169: =IF(H169="","",MAX(G$1:G168)+1) -> 50 | H169: 열 제어 시스템 전문가 | I169: 냉각 시스템, 열 방출 시스템 설계.
E170: =IF(F170="","",MAX(E$1:E169)+1) -> 53 | F170: 위성 통신 및 데이터 시스템 전문가 | G170: =IF(H170="","",MAX(G$1:G169)+1) -> 51 | H170: 데이터 처리 시스템 전문가 | I170: 위성에서 수집한 데이터를 저장, 처리, 전송하는 시스템 설계.
E171: =IF(F171="","",MAX(E$1:E170)+1) ->  | G171: =IF(H171="","",MAX(G$1:G170)+1) -> 52 | H171: 통신 링크 설계 전문가 | I171: 위성과 지상국 간의 통신 링크 설계, 신호 품질 및 전송 속도 최적화.
E172: =IF(F172="","",MAX(E$1:E171)+1) -> 54 | F172: 위성 추진 시스템 전문가 | G172: =IF(H172="","",MAX(G$1:G171)+1) -> 53 | H172: 추력기 설계 전문가 | I172: 궤도 조정 및 자세 제어를 위한 전기추진, 화학추진 시스템 설계.
E173: =IF(F173="","",MAX(E$1:E172)+1) ->  | G173: =IF(H173="","",MAX(G$1:G172)+1) -> 54 | H173: 연료 관리 전문가 | I173: 위성 추진 시스템의 연료 효율성과 수명을 최적화.
E174: =IF(F174="","",MAX(E$1:E173)+1) -> 55 | F174: 위성 소프트웨어 및 제어 시스템 전문가 | G174: =IF(H174="","",MAX(G$1:G173)+1) -> 55 | H174: 위성 비행 소프트웨어 전문가 | I174: 위성 운영을 위한 소프트웨어 개발 및 오류 복구 알고리즘 설계.
E175: =IF(F175="","",MAX(E$1:E174)+1) ->  | G175: =IF(H175="","",MAX(G$1:G174)+1) -> 56 | H175: 위성 지상 소프트웨어 및 실시간 제어 시스템 전문가 | I175: 위성의 상태를 실시간으로 모니터링하고 제어하는 시스템 설계.
E176: =IF(F176="","",MAX(E$1:E175)+1) -> 56 | F176: 위성 탑재체(Payload) 시스템 전문가 | G176: =IF(H176="","",MAX(G$1:G175)+1) -> 57 | H176: 통신 탑재체 설계 전문가 | I176: 위성 통신을 위한 안테나, 주파수, 신호 처리 시스템 설계.
E177: =IF(F177="","",MAX(E$1:E176)+1) ->  | G177: =IF(H177="","",MAX(G$1:G176)+1) -> 58 | H177: 관측 탑재체 설계 전문가 | I177: 지구 관측용 광학 카메라, 적외선 센서, SAR(Synthetic Aperture Radar) 개발.
E178: =IF(F178="","",MAX(E$1:E177)+1) ->  | G178: =IF(H178="","",MAX(G$1:G177)+1) -> 59 | H178: 과학 탑재체 전문가 | I178: 우주과학 연구를 위한 특수 장비(스펙트로미터, 망원경 등) 설계.
E179: =IF(F179="","",MAX(E$1:E178)+1) -> 57 | F179: 우주 파편방지 설계 및 파편 생성 저감 전문가 | G179: =IF(H179="","",MAX(G$1:G178)+1) ->  | I179: 위성의 궤도를 실시간으로 분석하여 우주 쓰레기 충돌 방지. 우주 잔해 발생을 최소화하기 위한 설계 전문가
E180: =IF(F180="","",MAX(E$1:E179)+1) -> 58 | F180: 위성 수명 연장 전문가 | G180: =IF(H180="","",MAX(G$1:G179)+1) ->  | I180: 연료 절약, 수리 기술 등으로 위성의 운용 수명 연장 연구.
A181: =A3+5 -> 6 | D181: 소재/부품/공정/장비 분야 | E181: =IF(F181="","",MAX(E$1:E180)+1) ->  | G181: =IF(H181="","",MAX(G$1:G180)+1) -> 
E182: =IF(F182="","",MAX(E$1:E181)+1) -> 59 | F182: 우주 적용 전자부품/전자장비 설계 및 제조 전문가 | G182: =IF(H182="","",MAX(G$1:G181)+1) -> 60 | H182: (세부 분야 작성)
E183: =IF(F183="","",MAX(E$1:E182)+1) -> 60 | F183: 우주 적용 소재 설계 및 제조 전문가 | G183: =IF(H183="","",MAX(G$1:G182)+1) -> 61 | H183: (세부 분야 작성)
E184: =IF(F184="","",MAX(E$1:E183)+1) -> 61 | F184: 우주 적용 기계부품/기계장비 설계 및 제조 전문가 | G184: =IF(H184="","",MAX(G$1:G183)+1) -> 62 | H184: (세부 분야 작성)
E185: =IF(F185="","",MAX(E$1:E184)+1) -> 62 | F185: 우주 적용 공정 전문가 | G185: =IF(H185="","",MAX(G$1:G184)+1) -> 63 | H185: (세부 분야 작성)
E186: =IF(F186="","",MAX(E$1:E185)+1) -> 63 | F186: 우주 적용 특수 장비 설계 및 제조 전문가 | G186: =IF(H186="","",MAX(G$1:G185)+1) -> 64 | H186: (세부 분야 작성)
A187: 7 | D187: 로켓공학 분야 | E187: =IF(F187="","",MAX(E$1:E186)+1) ->  | G187: =IF(H187="","",MAX(G$1:G186)+1) ->  | I187: 로켓 설계, 제작, 발사, 운영 및 기술 개발 전반에 관여하는 전문가
E188: =IF(F188="","",MAX(E$1:E187)+1) -> 64 | F188: 발사체 설계 및 통합 전문가 | G188: =IF(H188="","",MAX(G$1:G187)+1) ->  | I188: 로켓 전체 시스템을 설계하고 통합.
E189: =IF(F189="","",MAX(E$1:E188)+1) ->  | G189: =IF(H189="","",MAX(G$1:G188)+1) -> 65 | H189: 발사체 아키텍처 전문가 | I189: 발사체의 전체 구조 및 아키텍처 설계.
E190: =IF(F190="","",MAX(E$1:E189)+1) ->  | G190: =IF(H190="","",MAX(G$1:G189)+1) -> 66 | H190: 발사체 시스템 통합 전문가 | I190: 추진, 구조, 제어 시스템 등 각 부품을 통합. 통합 과정에서 발생하는 인터페이스 문제 해결.
E191: =IF(F191="","",MAX(E$1:E190)+1) ->  | G191: =IF(H191="","",MAX(G$1:G190)+1) -> 67 | H191: 발사체 비행시험 전문가 | I191: 실제 비행 테스트를 통해 시스템 성능 평가.
E192: =IF(F192="","",MAX(E$1:E191)+1) ->  | G192: =IF(H192="","",MAX(G$1:G191)+1) -> 68 | H192: 단계 분리 시스템 전문가 | I192: 다단계 로켓의 분리 메커니즘 설계. 로켓 비행 중 단계를 원활히 분리하도록 시스템 최적화.
E193: =IF(F193="","",MAX(E$1:E192)+1) ->  | G193: =IF(H193="","",MAX(G$1:G192)+1) -> 69 | H193: 재사용 로켓 설계 전문가 | I193: 재사용 가능한 로켓의 복귀 및 재활용 기술 개발.
E194: =IF(F194="","",MAX(E$1:E193)+1) -> 65 | F194: 발사체 및 하위시스템 제조 및 조립 전문가 | G194: =IF(H194="","",MAX(G$1:G193)+1) -> 
E195: =IF(F195="","",MAX(E$1:E194)+1) -> 66 | F195: 발사체 구조 및 재료 전문가 | G195: =IF(H195="","",MAX(G$1:G194)+1) ->  | I195: 로켓 본체와 구조적 안정성을 연구
E196: =IF(F196="","",MAX(E$1:E195)+1) ->  | G196: =IF(H196="","",MAX(G$1:G195)+1) -> 70 | H196: 로켓 구조 설계 전문가 | I196: 로켓 본체의 무게를 줄이면서도 고강도를 유지하는 설계. 발사 및 비행 중 하중, 압력, 열에 견디는 구조 설계.
E197: =IF(F197="","",MAX(E$1:E196)+1) ->  | G197: =IF(H197="","",MAX(G$1:G196)+1) -> 71 | H197: 우주용 재료 전문가 | I197: 극한 환경에 적합한 경량 고강도 소재(탄소섬유, 티타늄 합금 등) 개발.
E198: =IF(F198="","",MAX(E$1:E197)+1) ->  | G198: =IF(H198="","",MAX(G$1:G197)+1) -> 72 | H198: 적층 제조(3D 프린팅) 전문가 | I198: 3D 프린팅 기술을 활용한 복잡한 로켓 부품 생산.
E199: =IF(F199="","",MAX(E$1:E198)+1) -> 67 | F199: 발사체 열 관리 시스템 전문가 | G199: =IF(H199="","",MAX(G$1:G198)+1) ->  | I199: 로켓의 극한 열 환경을 관리
E200: =IF(F200="","",MAX(E$1:E199)+1) ->  | G200: =IF(H200="","",MAX(G$1:G199)+1) -> 73 | H200: 발사체 열 차폐/보호 설계 전문가 | I200: 연소 및 대기권 진입 중 발생하는 고열로부터 로켓 보호.
... 344 more rows

Sheet 비우주전문가 인력 pool
A1: 전문가 정보 | J1: 1순위 전문분야 | P1: 2순위 전문분야 | V1: 3순위 전문분야
A2: 기관명 | B2: 부서명(부/팀) | C2: 직급/직책 | D2: 성명 | E2: 연락처(휴대폰) | F2: 이메일 주소 | G2: 학위 전공분야 | H2: 우주분야 총 경력기간(학위+경력) | I2: 우주분야 여부 | J2: 전문분야 | K2: 전문가명 | L2: (필요시) 세부전문가명 | M2: 해당분야 경력기간(년수) | N2: 근무지 (다수작성가능) | O2: 비고 | P2: 전문분야 | Q2: 전문가명 | R2: (필요시) 세부전문가명 | S2: 해당분야 경력기간(년수) | T2: 근무지 (다수작성가능) | U2: 비고 | V2: 전문분야 | W2: 전문가명 | X2: (필요시) 세부전문가명 | Y2: 해당분야 경력기간(년수) | Z2: 근무지 (다수작성가능) | AA2: 비고
A3: 국방기술품질원 | B3: 첨단미래기술센터/우주위성팀 | C3: 선임연구원 | D3: 이해연 | E3: 010-5555-5555 | F3: 000@dtaq.re.kr | G3: 00공학 | H3: 0 년 | I3: X

Sheet 비우주 전문분야 및 전문가명
A1: 코드 | D1: 전문 분야 | F1: 전문가명 | H1: 세부 전문가명
A2: 분야 | B2: 전문가명 | C2: 세부전문가명 | E2: =IF(F2="","",MAX(E$1:E1)+1) ->  | G2: =IF(H2="","",MAX(G$1:G1)+1) -> 
A3: 1 | D3: 법, 정책, 전략, 기획 분야 | E3: =IF(F3="","",MAX(E$1:E2)+1) ->  | G3: =IF(H3="","",MAX(G$1:G2)+1) -> 
B4: 1.01 | E4: =IF(F4="","",MAX(E$1:E3)+1) -> 1 | F4: 법 전문가 | G4: =IF(H4="","",MAX(G$1:G3)+1) -> 
B5: 1.02 | E5: =IF(F5="","",MAX(E$1:E4)+1) -> 2 | F5: 규제 전문가 | G5: =IF(H5="","",MAX(G$1:G4)+1) -> 
B6: 1.03 | E6: =IF(F6="","",MAX(E$1:E5)+1) -> 3 | F6: 표준화 전문가 | G6: =IF(H6="","",MAX(G$1:G5)+1) -> 
B7: 1.04 | E7: =IF(F7="","",MAX(E$1:E6)+1) -> 4 | F7: 국제협력 전문가 | G7: =IF(H7="","",MAX(G$1:G6)+1) -> 
B8: 1.05 | E8: =IF(F8="","",MAX(E$1:E7)+1) -> 5 | F8: 정책 전문가 | G8: =IF(H8="","",MAX(G$1:G7)+1) -> 
B9: 1.07 | E9: =IF(F9="","",MAX(E$1:E8)+1) -> 6 | F9: 기술기획 전문가 | G9: =IF(H9="","",MAX(G$1:G8)+1) -> 
B10: 1.08 | E10: =IF(F10="","",MAX(E$1:E9)+1) -> 7 | F10: 사업(프로그램) 기획 전문가 | G10: =IF(H10="","",MAX(G$1:G9)+1) -> 
B11: 1.10. | E11: =IF(F11="","",MAX(E$1:E10)+1) -> 8 | F11: 보안 전문가 | G11: =IF(H11="","",MAX(G$1:G10)+1) -> 
B12: 1.11 | E12: =IF(F12="","",MAX(E$1:E11)+1) -> 9 | F12: 정책 데이터 분석가 | G12: =IF(H12="","",MAX(G$1:G11)+1) -> 
B13: 1.12 | E13: =IF(F13="","",MAX(E$1:E12)+1) -> 10 | F13: 경제 분석가 | G13: =IF(H13="","",MAX(G$1:G12)+1) -> 
B14: 1.13 | E14: =IF(F14="","",MAX(E$1:E13)+1) -> 11 | F14: 교육기획 및 인력양성/관리 전문가 | G14: =IF(H14="","",MAX(G$1:G13)+1) -> 
B15: 1.14 | E15: =IF(F15="","",MAX(E$1:E14)+1) -> 12 | F15: 스타트업 지원 전문가(컨설팅 전문가) | G15: =IF(H15="","",MAX(G$1:G14)+1) -> 
A16: =A3+1 -> 2 | D16: 프로젝트 관리 분야 | E16: =IF(F16="","",MAX(E$1:E15)+1) ->  | G16: =IF(H16="","",MAX(G$1:G15)+1) -> 
B17: 2.01 | E17: =IF(F17="","",MAX(E$1:E16)+1) -> 13 | F17: 프로젝트 기획 전문가 | G17: =IF(H17="","",MAX(G$1:G16)+1) -> 
B18: 2.02 | E18: =IF(F18="","",MAX(E$1:E17)+1) -> 14 | F18: 프로젝트 관리 전문가 | G18: =IF(H18="","",MAX(G$1:G17)+1) -> 
B19: 2.03 | E19: =IF(F19="","",MAX(E$1:E18)+1) -> 15 | F19: 형상 관리 전문가 | G19: =IF(H19="","",MAX(G$1:G18)+1) -> 
B20: 2.04 | E20: =IF(F20="","",MAX(E$1:E19)+1) -> 16 | F20: 정보/문서 관리 전문가 | G20: =IF(H20="","",MAX(G$1:G19)+1) -> 
B21: 2.05 | E21: =IF(F21="","",MAX(E$1:E20)+1) -> 17 | F21: 비용분석 및 관리 전문가 | G21: =IF(H21="","",MAX(G$1:G20)+1) -> 
B22: 2.06 | E22: =IF(F22="","",MAX(E$1:E21)+1) -> 18 | F22: 위험분석 및 관리 전문가 | G22: =IF(H22="","",MAX(G$1:G21)+1) -> 
B23: 2.07 | E23: =IF(F23="","",MAX(E$1:E22)+1) -> 19 | F23: 계약관리 전문가 | G23: =IF(H23="","",MAX(G$1:G22)+1) -> 
B24: 2.08 | E24: =IF(F24="","",MAX(E$1:E23)+1) -> 20 | F24: 프로젝트 성과분석 전문가 | G24: =IF(H24="","",MAX(G$1:G23)+1) -> 
A25: =A3+2 -> 3 | D25: 제품보증 분야 | E25: =IF(F25="","",MAX(E$1:E24)+1) ->  | G25: =IF(H25="","",MAX(G$1:G24)+1) -> 
E26: =IF(F26="","",MAX(E$1:E25)+1) -> 21 | F26: 품질관리시스템(QMS) 전문가 | G26: =IF(H26="","",MAX(G$1:G25)+1) -> 
E27: =IF(F27="","",MAX(E$1:E26)+1) -> 22 | F27: 품질관리 전문가(품질관리 기관) | G27: =IF(H27="","",MAX(G$1:G26)+1) -> 
E28: =IF(F28="","",MAX(E$1:E27)+1) -> 23 | F28: 품질보증 전문가(업체) | G28: =IF(H28="","",MAX(G$1:G27)+1) -> 
E29: =IF(F29="","",MAX(E$1:E28)+1) -> 24 | F29: 전자부품 품질 전문가 | G29: =IF(H29="","",MAX(G$1:G28)+1) -> 
E30: =IF(F30="","",MAX(E$1:E29)+1) ->  | G30: =IF(H30="","",MAX(G$1:G29)+1) -> 1 | H30: PCB
E31: =IF(F31="","",MAX(E$1:E30)+1) ->  | G31: =IF(H31="","",MAX(G$1:G30)+1) -> 2 | H31: ASIC, FPGA, IP 코어
E32: =IF(F32="","",MAX(E$1:E31)+1) ->  | G32: =IF(H32="","",MAX(G$1:G31)+1) -> 3 | H32: 하이브리드 및 모듈
E33: =IF(F33="","",MAX(E$1:E32)+1) ->  | G33: =IF(H33="","",MAX(G$1:G32)+1) -> 4 | H33: 모놀리식 마이크로파 집적회로(MMIC)
E34: =IF(F34="","",MAX(E$1:E33)+1) ->  | G34: =IF(H34="","",MAX(G$1:G33)+1) -> 5 | H34: 캐패시터
E35: =IF(F35="","",MAX(E$1:E34)+1) ->  | G35: =IF(H35="","",MAX(G$1:G34)+1) -> 6 | H35: 인덕터(RF 및 전력 코일)
E36: =IF(F36="","",MAX(E$1:E35)+1) ->  | G36: =IF(H36="","",MAX(G$1:G35)+1) -> 7 | H36: 커넥터
E37: =IF(F37="","",MAX(E$1:E36)+1) ->  | G37: =IF(H37="","",MAX(G$1:G36)+1) -> 8 | H37: 전선 & 케이블(RF, LF)
E38: =IF(F38="","",MAX(E$1:E37)+1) ->  | G38: =IF(H38="","",MAX(G$1:G37)+1) -> 9 | H38: 감쇠기(Attenuator) 및 부하
E39: =IF(F39="","",MAX(E$1:E38)+1) ->  | G39: =IF(H39="","",MAX(G$1:G38)+1) -> 10 | H39: 히터
E40: =IF(F40="","",MAX(E$1:E39)+1) ->  | G40: =IF(H40="","",MAX(G$1:G39)+1) -> 11 | H40: 전력분배기
E41: =IF(F41="","",MAX(E$1:E40)+1) ->  | G41: =IF(H41="","",MAX(G$1:G40)+1) -> 12 | H41: 페라이트 마이크로파 부품
E42: =IF(F42="","",MAX(E$1:E41)+1) ->  | G42: =IF(H42="","",MAX(G$1:G41)+1) -> 13 | H42: 크리스탈 및 표면 탄성파(SAW, Surface Acoustic Wave) 필터
E43: =IF(F43="","",MAX(E$1:E42)+1) ->  | G43: =IF(H43="","",MAX(G$1:G42)+1) -> 14 | H43: 이산 반도체(다이오드, 트랜지스터 등)
E44: =IF(F44="","",MAX(E$1:E43)+1) ->  | G44: =IF(H44="","",MAX(G$1:G43)+1) -> 15 | H44: 발진기(OSCILLATOR)
E45: =IF(F45="","",MAX(E$1:E44)+1) ->  | G45: =IF(H45="","",MAX(G$1:G44)+1) -> 16 | H45: 릴레이 및 스위치
E46: =IF(F46="","",MAX(E$1:E45)+1) ->  | G46: =IF(H46="","",MAX(G$1:G45)+1) -> 17 | H46: 저항기 및 서미스터
E47: =IF(F47="","",MAX(E$1:E46)+1) ->  | G47: =IF(H47="","",MAX(G$1:G46)+1) -> 18 | H47: 퓨즈
E48: =IF(F48="","",MAX(E$1:E47)+1) ->  | G48: =IF(H48="","",MAX(G$1:G47)+1) -> 19 | H48: 광전자 부품 및 모듈
E49: =IF(F49="","",MAX(E$1:E48)+1) ->  | G49: =IF(H49="","",MAX(G$1:G48)+1) -> 20 | H49: 기타 EEE 부품
E50: =IF(F50="","",MAX(E$1:E49)+1) -> 25 | F50: 기계부품 품질 전문가 | G50: =IF(H50="","",MAX(G$1:G49)+1) -> 
E51: =IF(F51="","",MAX(E$1:E50)+1) -> 26 | F51: 소재(재료) 품질 전문가 | G51: =IF(H51="","",MAX(G$1:G50)+1) -> 
E52: =IF(F52="","",MAX(E$1:E51)+1) -> 27 | F52: 공정 품질 전문가 | G52: =IF(H52="","",MAX(G$1:G51)+1) -> 
E53: =IF(F53="","",MAX(E$1:E52)+1) -> 28 | F53: 신뢰성 전문가 | G53: =IF(H53="","",MAX(G$1:G52)+1) -> 
E54: =IF(F54="","",MAX(E$1:E53)+1) -> 29 | F54: 안전성 전문가 | G54: =IF(H54="","",MAX(G$1:G53)+1) -> 
E55: =IF(F55="","",MAX(E$1:E54)+1) -> 30 | F55: 소프트웨어 품질 전문가 | G55: =IF(H55="","",MAX(G$1:G54)+1) -> 
E56: =IF(F56="","",MAX(E$1:E55)+1) -> 31 | F56: 품질 감사 전문가 | G56: =IF(H56="","",MAX(G$1:G55)+1) -> 
A57: =A3+3 -> 4 | D57: 시험∙평가, 데이터 분석 분야 | E57: =IF(F57="","",MAX(E$1:E56)+1) ->  | G57: =IF(H57="","",MAX(G$1:G56)+1) -> 
E58: =IF(F58="","",MAX(E$1:E57)+1) -> 32 | F58: 환경 시험 전문가 | G58: =IF(H58="","",MAX(G$1:G57)+1) -> 
E59: =IF(F59="","",MAX(E$1:E58)+1) -> 33 | F59: 구조 및 역학 시험 전문가 | G59: =IF(H59="","",MAX(G$1:G58)+1) -> 
E60: =IF(F60="","",MAX(E$1:E59)+1) -> 34 | F60: 전자파 시험 전문가 | G60: =IF(H60="","",MAX(G$1:G59)+1) -> 
E61: =IF(F61="","",MAX(E$1:E60)+1) -> 35 | F61: 방사선 시험 전문가 | G61: =IF(H61="","",MAX(G$1:G60)+1) -> 
E62: =IF(F62="","",MAX(E$1:E61)+1) -> 36 | F62: 소재 시험 전문가 | G62: =IF(H62="","",MAX(G$1:G61)+1) -> 
E63: =IF(F63="","",MAX(E$1:E62)+1) -> 37 | F63: 신뢰성 및 수명평가 전문가 | G63: =IF(H63="","",MAX(G$1:G62)+1) -> 
A64: =A3+4 -> 5 | D64: 공학 분야 | E64: =IF(F64="","",MAX(E$1:E63)+1) -> 38 | F64: 임무 설계 전문가 | G64: =IF(H64="","",MAX(G$1:G63)+1) -> 
E65: =IF(F65="","",MAX(E$1:E64)+1) -> 39 | F65: 체계 설계 및 시스템 통합 전문가 | G65: =IF(H65="","",MAX(G$1:G64)+1) -> 
E66: =IF(F66="","",MAX(E$1:E65)+1) -> 40 | F66: 체계 및 하위시스템 제조 및 조립 전문가 | G66: =IF(H66="","",MAX(G$1:G65)+1) -> 
E67: =IF(F67="","",MAX(E$1:E66)+1) -> 41 | F67: 구조 설계 전문가 | G67: =IF(H67="","",MAX(G$1:G66)+1) -> 
E68: =IF(F68="","",MAX(E$1:E67)+1) -> 42 | F68: 전력시스템 전문가 | G68: =IF(H68="","",MAX(G$1:G67)+1) -> 
E69: =IF(F69="","",MAX(E$1:E68)+1) -> 43 | F69: 열 제어 시스템 전문가 | G69: =IF(H69="","",MAX(G$1:G68)+1) -> 
E70: =IF(F70="","",MAX(E$1:E69)+1) -> 44 | F70: 통신 및 데이터 시스템 전문가 | G70: =IF(H70="","",MAX(G$1:G69)+1) -> 
E71: =IF(F71="","",MAX(E$1:E70)+1) -> 45 | F71: 추진 시스템 전문가 | G71: =IF(H71="","",MAX(G$1:G70)+1) -> 
E72: =IF(F72="","",MAX(E$1:E71)+1) -> 46 | F72: 소프트웨어 전문가 | G72: =IF(H72="","",MAX(G$1:G71)+1) -> 
B74: 본 문서에 기재된 분야 및 전문가 외에 필요하다고 생각되는 항목이 있다면 (행 314 ~ 행 317)에 작성 부탁드립니다. | D74: 본 문서에 기재된 분야 및 전문가 외에 필요하다고 생각되는 항목이 있다면 (행 73 ~ 행 80)에 작성 부탁드립니다.
D81: =IFERROR(INDEX(D2:D72,MATCH(ROW()-ROW($D$80),A2:A72,0)),"") -> 법, 정책, 전략, 기획 분야 | F81: =IFERROR(INDEX(F2:F72,MATCH(ROW()-ROW($F$80),E2:E72,0)),"") -> 법 전문가 | H81: =IFERROR(INDEX(H2:H72,MATCH(ROW()-ROW($H$80),G2:G72,0)),"") -> PCB
D82: =IFERROR(INDEX(D3:D73,MATCH(ROW()-ROW($D$80),A3:A73,0)),"") -> 프로젝트 관리 분야 | F82: =IFERROR(INDEX(F3:F73,MATCH(ROW()-ROW($F$80),E3:E73,0)),"") -> 규제 전문가 | H82: =IFERROR(INDEX(H3:H73,MATCH(ROW()-ROW($H$80),G3:G73,0)),"") -> ASIC, FPGA, IP 코어
D83: 제품보증 분야 | F83: 표준화 전문가 | H83: 하이브리드 및 모듈
D84: 시험∙평가, 데이터 분석 분야 | F84: 국제협력 전문가 | H84: 모놀리식 마이크로파 집적회로(MMIC)
D85: 공학 분야 | F85: 정책 전문가 | H85: 캐패시터
F86: 기술기획 전문가 | H86: 인덕터(RF 및 전력 코일)
F87: 사업(프로그램) 기획 전문가 | H87: 커넥터
F88: 보안 전문가 | H88: 전선 & 케이블(RF, LF)
F89: 정책 데이터 분석가 | H89: 감쇠기(Attenuator) 및 부하
F90: 경제 분석가 | H90: 히터
F91: 교육기획 및 인력양성/관리 전문가 | H91: 전력분배기
F92: 스타트업 지원 전문가(컨설팅 전문가) | H92: 페라이트 마이크로파 부품
F93: 프로젝트 기획 전문가 | H93: 크리스탈 및 표면 탄성파(SAW, Surface Acoustic Wave) 필터
F94: 프로젝트 관리 전문가 | H94: 이산 반도체(다이오드, 트랜지스터 등)
F95: 형상 관리 전문가 | H95: 발진기(OSCILLATOR)
F96: 정보/문서 관리 전문가 | H96: 릴레이 및 스위치
F97: 비용분석 및 관리 전문가 | H97: 저항기 및 서미스터
F98: 위험분석 및 관리 전문가 | H98: 퓨즈
F99: 계약관리 전문가 | H99: 광전자 부품 및 모듈
F100: 프로젝트 성과분석 전문가 | H100: 기타 EEE 부품
F101: 품질관리시스템(QMS) 전문가
F102: 품질관리 전문가(품질관리 기관)
F103: 품질보증 전문가(업체)
F104: 전자부품 품질 전문가
F105: 기계부품 품질 전문가
F106: 소재(재료) 품질 전문가
F107: =IFERROR(INDEX(F28:F98,MATCH(ROW()-ROW($F$80),E28:E98,0)),"") -> 공정 품질 전문가
F108: 신뢰성 전문가
F109: 안전성 전문가
F110: 소프트웨어 품질 전문가
F111: 품질 감사 전문가
F112: 환경 시험 전문가
F113: 구조 및 역학 시험 전문가
F114: 전자파 시험 전문가
F115: 방사선 시험 전문가
F116: 소재 시험 전문가
F117: 신뢰성 및 수명평가 전문가
F118: =IFERROR(INDEX(F39:F109,MATCH(ROW()-ROW($F$80),E39:E109,0)),"") -> 임무 설계 전문가
F119: 체계 설계 및 시스템 통합 전문가
F120: 체계 및 하위시스템 제조 및 조립 전문가
F121: 구조 설계 전문가
F122: 전력시스템 전문가
F123: 열 제어 시스템 전문가
F124: 통신 및 데이터 시스템 전문가
F125: 추진 시스템 전문가
F126: 소프트웨어 전문가
F159: =IFERROR(INDEX(F59:F153,MATCH(ROW()-ROW($F$76),E59:E153,0)),"") -> 
F160: =IFERROR(INDEX(F59:F154,MATCH(ROW()-ROW($F$76),E59:E154,0)),"") -> 
F161: =IFERROR(INDEX(F59:F155,MATCH(ROW()-ROW($F$76),E59:E155,0)),"") -> 
F162: =IFERROR(INDEX(F60:F156,MATCH(ROW()-ROW($F$76),E60:E156,0)),"") -> 
F163: =IFERROR(INDEX(F60:F157,MATCH(ROW()-ROW($F$76),E60:E157,0)),"") -> 
F164: =IFERROR(INDEX(F60:F158,MATCH(ROW()-ROW($F$76),E60:E158,0)),"") -> 
F165: =IFERROR(INDEX(F60:F159,MATCH(ROW()-ROW($F$76),E60:E159,0)),"") -> 
F166: =IFERROR(INDEX(F60:F160,MATCH(ROW()-ROW($F$76),E60:E160,0)),"") -> 
F167: =IFERROR(INDEX(F60:F161,MATCH(ROW()-ROW($F$76),E60:E161,0)),"") -> 
F168: =IFERROR(INDEX(F60:F162,MATCH(ROW()-ROW($F$76),E60:E162,0)),"") -> 
F169: =IFERROR(INDEX(F60:F163,MATCH(ROW()-ROW($F$76),E60:E163,0)),"") -> 
F170: =IFERROR(INDEX(F61:F164,MATCH(ROW()-ROW($F$76),E61:E164,0)),"") -> 
F171: =IFERROR(INDEX(F61:F165,MATCH(ROW()-ROW($F$76),E61:E165,0)),"") -> 
F172: =IFERROR(INDEX(F61:F166,MATCH(ROW()-ROW($F$76),E61:E166,0)),"") -> 
F173: =IFERROR(INDEX(F62:F167,MATCH(ROW()-ROW($F$76),E62:E167,0)),"") -> 
F174: =IFERROR(INDEX(F62:F168,MATCH(ROW()-ROW($F$76),E62:E168,0)),"") -> 
F175: =IFERROR(INDEX(F62:F169,MATCH(ROW()-ROW($F$76),E62:E169,0)),"") -> 
F176: =IFERROR(INDEX(F62:F170,MATCH(ROW()-ROW($F$76),E62:E170,0)),"") -> 
F177: =IFERROR(INDEX(F63:F171,MATCH(ROW()-ROW($F$76),E63:E171,0)),"") -> 
F178: =IFERROR(INDEX(F60:F172,MATCH(ROW()-ROW($F$76),E60:E172,0)),"") -> 
F179: =IFERROR(INDEX(F64:F173,MATCH(ROW()-ROW($F$76),E64:E173,0)),"") -> 
F180: =IFERROR(INDEX(F64:F174,MATCH(ROW()-ROW($F$76),E64:E174,0)),"") -> 
F181: =IFERROR(INDEX(F64:F175,MATCH(ROW()-ROW($F$76),E64:E175,0)),"") -> 
F182: =IFERROR(INDEX(F65:F176,MATCH(ROW()-ROW($F$76),E65:E176,0)),"") -> 
F183: =IFERROR(INDEX(F66:F177,MATCH(ROW()-ROW($F$76),E66:E177,0)),"") -> 
F184: =IFERROR(INDEX(F66:F178,MATCH(ROW()-ROW($F$76),E66:E178,0)),"") -> 
F185: =IFERROR(INDEX(F66:F179,MATCH(ROW()-ROW($F$76),E66:E179,0)),"") -> 
F186: =IFERROR(INDEX(F67:F180,MATCH(ROW()-ROW($F$76),E67:E180,0)),"") -> 
F187: =IFERROR(INDEX(F67:F181,MATCH(ROW()-ROW($F$76),E67:E181,0)),"") -> 
F188: =IFERROR(INDEX(F68:F182,MATCH(ROW()-ROW($F$76),E68:E182,0)),"") -> 
F189: =IFERROR(INDEX(F69:F183,MATCH(ROW()-ROW($F$76),E69:E183,0)),"") -> 
F190: =IFERROR(INDEX(F69:F184,MATCH(ROW()-ROW($F$76),E69:E184,0)),"") -> 
F191: =IFERROR(INDEX(F69:F185,MATCH(ROW()-ROW($F$76),E69:E185,0)),"") -> 
F192: =IFERROR(INDEX(F70:F186,MATCH(ROW()-ROW($F$76),E70:E186,0)),"") -> 
F193: =IFERROR(INDEX(F70:F187,MATCH(ROW()-ROW($F$76),E70:E187,0)),"") -> 
F194: =IFERROR(INDEX(F70:F188,MATCH(ROW()-ROW($F$76),E70:E188,0)),"") -> 
F195: =IFERROR(INDEX(F71:F189,MATCH(ROW()-ROW($F$76),E71:E189,0)),"") -> 
F196: =IFERROR(INDEX(F71:F190,MATCH(ROW()-ROW($F$76),E71:E190,0)),"") -> 
F197: =IFERROR(INDEX(F72:F191,MATCH(ROW()-ROW($F$76),E72:E191,0)),"") -> 
